Cogmind - Beta 15 @@@ ROGUE MODE // 2025.07.24 @ 15:16:36 Player: Waste Result: Destroyed by 3A-999(R) with Subdweller Machine Gun Performance ------------- Evolutions (0) 0 Regions Visited (2) 400 Robots Destroyed (25) 125 Value Destroyed (694) 694 Prototype IDs (0) 0 Alien Tech Used (0) 0 Bonus (0) 0 TOTAL SCORE: 1219 Bonus ------- None Cogmind --------- Core Integrity 0/250 Matter 265/300 Energy 182/250 System Corruption 6% Temperature Warm (102) Movement Treading (240) Ox1 Location -10/Subcaves Parts ------- > --- POWER (1) -------- Ion Engine > --- PROPULSION (2) --- Light Treads > --- UTILITY (2) ------ Large Storage Unit > --- WEAPON (2) ------- Subdweller Laser Subdweller Beam Cannon > --- INVENTORY (15) --- Improved Ion Engine Aluminum Leg Compact Wheel Subdweller Monowheel Subdweller Monowheel Beam Rifle Subdweller Beam Cannon Battle Rifle Battle Rifle Grenade Launcher Grenade Launcher Dirty Datajack (20) Makeshift Spear Scrap Shield Fragment (44) Peak State ------------ > --- POWER ------------ Ion Engine > --- PROPULSION ------- Light Treads Light Treads > --- UTILITY ---------- Large Storage Unit > --- WEAPON ----------- Subdweller Beam Cannon Makeshift Spear > --- INVENTORY -------- Aluminum Leg Compact Wheel Subdweller Monowheel Subdweller Monowheel Battle Rifle Grenade Launcher Grenade Launcher Dirty Datajack Scrap Shield Fragment [Rating: 11] Favorites ----------- Power Ion Engine Engine Ion Engine Propulsion Aluminum Leg Treads Light Treads Leg Aluminum Leg Utility Large Storage Unit Storage Large Storage Unit Protection Weapon Shielding Weapon Medium Laser Energy Gun Medium Laser Energy Cannon Subdweller Beam Cannon Ballistic Gun Subdweller Machine Gun Ballistic Cannon Battle Cannon Piercing Weapon Makeshift Spear Build | -11 -10 -10 ------- Run | Yrd Mat Sub Slots Evolved . | . . . Power . | . . . Propulsion . | . . . Utility . | . . . Weapon . | . . . Parts Attached 20 | . 7 13 Power 1 | . . 1 Engine 1 | . . 1 Core . | . . . Reactor . | . . . Propulsion 7 | . 4 3 Treads 3 | . . 3 Leg 4 | . 4 . Wheel . | . . . Hover . | . . . Flight . | . . . Utility 3 | . 2 1 Device . | . . . Storage 1 | . 1 . Processor . | . . . Hackware . | . . . Protection 2 | . 1 1 Artifact . | . . . Weapon 9 | . 1 8 Energy Gun 3 | . 1 2 Energy Cannon 2 | . . 2 Ballistic Gun 2 | . . 2 Ballistic Cannon 1 | . . 1 Launcher . | . . . Special Weapon . | . . . Impact Weapon . | . . . Slashing Weapon . | . . . Piercing Weapon 1 | . . 1 Special Melee Weapon . | . . . Unidentified Prototypes . | . . . Corrupted Parts 1 | . . 1 System Corruption 6 | . . 6 Parts Lost 10 | . . 10 Power 1 | . . 1 Propulsion 5 | . . 5 Utility 2 | . . 2 Weapon 2 | . . 2 Highest Loss Streak 4 | . . 4 To Critical Strikes . | . . . Average Backups 10 | . 7 10 Power . | . 1 . Propulsion 4 | . 4 4 Utility . | . . . Weapon 3 | . 2 4 Tool/Special . | . . . Unused Backups 19 | . 7 12 Power 3 | . 1 2 Propulsion 7 | . 3 4 Utility 1 | . 1 . Weapon 7 | . 2 5 Tool/Special 1 | . . 1 Average Slot Usage (%) 88 | . 90 88 Engine 10 | . 14 10 Treads 12 | . . 16 Leg 14 | . 28 10 Storage 14 | . 14 14 Protection 6 | . 4 7 Energy Gun 15 | . 28 11 Energy Cannon 6 | . . 8 Ballistic Gun 4 | . . 5 Ballistic Cannon 1 | . . 2 Peak Build Rating 11 | . 8 11 Average Rating 8 | . 6 9 On Entrance 6 | 6 6 8 Naked Turns . | . . . Heaviest Build 41 | 12 29 41 Greatest Support 40 | 20 20 40 Greatest Overweight (x) 1 | . 1 1 Average Overweight (x) . | . . . Largest Inventory Capacity 15 | . 15 15 Average Capacity 13 | . 9 15 Most Carried 15 | . 10 15 Average Carried 10 | . 7 11 Final Capacity 15 | 8 15 15 Final Carried 14 | 6 10 14 Class Distribution -------------------- 100% | Mutant Dominant Class ---------------- Mutant | -10/Materials Mutant | -10/Subcaves Resources | -11 -10 -10 ----------- Run | Yrd Mat Sub Matter Collected 495 | 196 69 230 Remotely . | . . . Salvage Created 944 | . 406 538 Parts 49 | . 21 28 Haulers Intercepted 2 | . 2 . Recyclers Shooed 1 | . 1 . Parts Field Recycled . | . . . Retrieved Matter . | . . . Parts Self-Destructed 11 | . . 11 Prevented . | . . . Kills | -11 -10 -10 ------- Run | Yrd Mat Sub Combat Hostiles Destroyed 20 | . 5 15 Guns 14 | . 5 9 Cannons 6 | . . 6 Classes Destroyed 7 | . 5 2 Hauler 2 | . 2 . Recycler 2 | . 2 . Watcher 1 | . 1 . Swarmer 5 | . 3 2 Grunt 4 | . 2 2 Sentry 2 | . . 2 Subdweller 9 | . . 9 Best Kill Streak 3 | . 3 2 Combat Bots Only 3 | . 3 2 Max Kills in Single Turn 1 | . 1 1 Gunslinging . | . . . Exploded . | . . . Melee . | . . . Uniques/NPCs Destroyed . | . . . Combat | -11 -10 -10 -------- Run | Yrd Mat Sub Hostile Shots Fired 112 | . 20 92 Missed 35 | . 2 33 Hits 77 | . 18 59 Projectile 77 | . 18 59 Critical Strikes 4 | . 1 3 Damage Taken 1550 | . 199 1351 Core 257 | . 28 229 Absorbed by Shields . | . . . Redirected to Shielding 112 | . . 112 Core Remaining (%) 100 | 100 . . Volleys Fired 105 | . 32 73 Largest 2 | . 2 2 Hottest 160 | . 90 160 Shots Fired 202 | . 64 138 Gun 155 | . 64 91 Cannon 47 | . . 47 Launcher . | . . . Special . | . . . Kinetic 30 | . . 30 Thermal 164 | . 64 100 Explosive . | . . . Electromagnetic 8 | . . 8 Robot Hit Streak 27 | . 8 27 Robot Miss Streak 2 | . 2 2 Penetration Max . | . . . Secondary Targets 1 | . . 1 Max Gunslinging Chain 1 | . . 1 Shots Hit Robots 141 | . 44 97 Core Hits 47 | . 20 27 Critical Kills . | . . . Critical Parts Destroyed . | . . . Critical Strikes 9 | . 1 8 Burn 7 | . 1 6 Destroy 1 | . . 1 Blast 1 | . . 1 Melee Attacks 2 | . . 2 Impact . | . . . Slashing . | . . . Piercing 2 | . . 2 Sneak Attacks . | . . . Combat Hostiles . | . . . Follow-up Attacks . | . . . Damage Inflicted 2255 | . 515 1740 Guns 1611 | . 512 1099 Cannons 641 | . . 641 Explosions . | . . . Melee . | . . . Ramming 3 | . 3 . Kinetic 457 | . . 457 Thermal 1716 | . 512 1204 Explosive . | . . . Electromagnetic 79 | . . 79 Impact . | . . . Slashing . | . . . Piercing . | . . . Highest Corruption 6 | . . 6 Average Corruption 6 | . . 6 Corruption Purged . | . . . Corruption Blocked . | . . . Effects 16 | . . 16 Message Errors 4 | . . 4 Matter Fused 6 | . . 6 Heat Flow Errors 2 | . . 2 Data Loss (minor) 2 | . . 2 Misfires 1 | . . 1 Weapon Failures 1 | . . 1 Overload Shots . | . . . Overflow Damage . | . . . Projectiles . | . . . Explosions . | . . . Melee . | . . . Knockbacks 2 | . 1 1 Impact 1 | . 1 . Kinetic 1 | . . 1 Secondary . | . . . Self-Inflicted Damage . | . . . Shots . | . . . Rammed . | . . . Targets Rammed 3 | . 3 . Kicked 3 | . 3 . Crushed . | . . . Highest Temperature 275 | . 270 275 Average Temperature 81 | . 86 76 Received Heat Transfer 952 | . 108 844 Siege Activations . | . . . Martial Activations . | . . . Shielding Activations . | . . . Robots Disrupted . | . . . Combat Hostiles . | . . . Robots Corrupted . | . . . Combat Hostiles . | . . . Parts Fried 1 | . . 1 Impact Corruptions . | . . . Robots Melted . | . . . Combat Hostiles . | . . . Parts Melted 10 | . 3 7 Heat Transferred 4053 | . 1259 2794 Parts Sabotaged . | . . . Parts Stolen . | . . . Parts Stripped . | . . . Power Chain Reactions . | . . . Alert | -11 -10 -10 ------- Run | Yrd Mat Sub Maximum Alert Level . | . . . Low Security (%) 100 | . 100 . Level 1 . | . . . Level 2 . | . . . Level 3 . | . . . Level 4 . | . . . Level 5 . | . . . High Security . | . . . Max Security . | . . . Peak Influence 145 | . 145 . Initial . | . . . Average 77 | . 77 . Influence Increases 356 | . 226 130 Destroy 0b10 Robot/C 220 | . 100 120 Destroy 0b10 Robot/NC 25 | . 25 . Destroy Leader 36 | . 26 10 Lose Combat Pursuer 75 | . 75 . Influence Decreases 356 | . 180 176 Entered New Map 23 | . . 23 Time Decay 333 | . 180 153 Squads Dispatched 1 | . 1 . Investigation . | . . . Extermination . | . . . Reinforcement 1 | . 1 . Assault . | . . . Garrison . | . . . Intercept . | . . . Searches Triggered . | . . . Construction Impeded . | . . . Haulers Reinforced . | . . . Active Scanning Responses . | . . . Cargo Convoy Interrupts . | . . . Stealth | -11 -10 -10 --------- Run | Yrd Mat Sub Distress Signals 1 | . 1 . Communications Jammed . | . . . Distress Signals . | . . . Times Spotted 34 | . 14 20 Peak Tracking Total 7 | . 7 4 Tactical Retreats 2 | . 2 . Traps | -11 -10 -10 ------- Run | Yrd Mat Sub Traps Triggered . | . . . Indirectly . | . . . Trap Hack Attempts . | . . . Triggered . | . . . Disarmed . | . . . Reprogrammed . | . . . Reused . | . . . Traps Extracted . | . . . Installed . | . . . Triggered . | . . . Machines | -11 -10 -10 ---------- Run | Yrd Mat Sub Machines Disabled . | . . . Max in Single Turn . | . . . Machines Repaired . | . . . Machines Dismantled . | . . . Machines Sabotaged . | . . . Overloaded Fab Kills . | . . . Hacking | -11 -10 -10 --------- Run | Yrd Mat Sub Machines Accessed 1 | . 1 . Terminals 1 | . 1 . Fabricators . | . . . Repair Stations . | . . . Recycling Units . | . . . Scanalyzers . | . . . Garrison Access . | . . . Total Hacks 1 | . 1 . Successful . | . . . Failed 1 | . 1 . Catastrophic 1 | . 1 . Database Lockouts . | . . . Manual 1 | . 1 . Terminals 1 | . 1 . Fabricators . | . . . Repair Stations . | . . . Recycling Units . | . . . Scanalyzers . | . . . Garrison Access . | . . . Terminal Hacks . | . . . Fabricator Hacks . | . . . Repair Station Hacks . | . . . Recycling Unit Hacks . | . . . Scanalyzer . | . . . Garrison Access Hacks . | . . . Unauthorized Hacks . | . . . Terminals . | . . . Fabricators . | . . . Repair Stations . | . . . Recycling Units . | . . . Scanalyzers . | . . . Garrison Access . | . . . Data Cores Recovered . | . . . Used . | . . . Hacking Detections 1 | . 1 . Full Trace Events . | . . . Feedback Events . | . . . Feedback Blocked . | . . . Robot Schematics Acquired . | . . . Robots Built . | . . . Authchips . | . . . Time . | . . . Total Robot Build Rating . | . . . Part Schematics Acquired . | . . . Parts Built . | . . . Authchips . | . . . Time . | . . . Total Part Build Rating . | . . . Parts Repaired . | . . . Time . | . . . Parts Recycled . | . . . Recycled Matter . | . . . Retrieved Matter . | . . . Retrieved Components . | . . . Parts Scanalyzed . | . . . Part Schematics Acquired . | . . . Parts Damaged . | . . . Bothacking | -11 -10 -10 ------------ Run | Yrd Mat Sub Used RIF Installer . | . . . Robots Hacked . | . . . Non-combat . | . . . Combat . | . . . Robot Hacks Applied . | . . . Relay Couplers Released . | . . . Fabnet Peak Effective % . | . . . Robots Rewired . | . . . Allies Hacked . | . . . Hacks Repelled . | . . . Allies | -11 -10 -10 -------- Run | Yrd Mat Sub Total Allies . | . . . Largest Group . | . . . Highest-Rated Group . | . . . Highest-Rated Ally . | . . . Total Orders . | . . . Ally Attacks . | . . . Total Damage . | . . . Kills . | . . . Allies Corrupted . | . . . Allies Melted . | . . . Intel | -11 -10 -10 ------- Run | Yrd Mat Sub Active Infowar (turns) . | . . . Robot Analysis Total . | . . . Derelict Logs Recovered 2 | . . 2 Drone Launches . | . . . Drone Recoveries . | . . . Exploration | -11 -10 -10 ------------- Run | Yrd Mat Sub Turns Passed 2249 | . 497 1752 Spaces Moved 1067 | 1 278 788 Core . | . . . Treads 479 | . . 479 Legs 588 | 1 278 309 Wheels . | . . . Hover . | . . . Flight . | . . . Fastest Speed 120 | 120 120 160 Average Speed 169 | 120 127 184 Slowest Speed 240 | 120 190 240 Overloaded Moves . | . . . Propulsion Burnouts . | . . . Robots Hopped . | . . . Potential Cave-ins . | . . . Cave-ins Triggered . | . . . Exploration Rate (%) 34 | 2 47 54 Regions Visited 2 Branch Regions 1 Pre-discovered Areas 2 | . . 2 Known Exits Taken . | . . . Unknown Exits Taken 2 | 1 1 . Scrap Searched . | . . . Spaces Dug . | . . . Terrain Destroyed 1 | . . 1 Melee . | . . . Projectile 1 | . . 1 AOE . | . . . Terrain Rammed . | . . . Walls Destroyed . | . . . Machines Disabled . | . . . Actions | -11 -10 -10 --------- Run | Yrd Mat Sub Total 1301 | . 358 943 Wait 81 | . 29 52 Move 1065 | . 277 788 Hop . | . . . Pick Up 16 | . 4 12 Fast Attach 1 | . 1 . Attach 8 | . . 8 Detach . | . . . Swap 14 | . 6 8 Drop 6 | . 6 . Fire 105 | . 32 73 Melee 2 | . . 2 Ram . | . . . Kick 3 | . 3 . Crush . | . . . Escape Stasis . | . . . Rewire . | . . . Trap . | . . . Miscellaneous . | . . . Route ------- -11/Scrapyard -10/Materials (discovered 3 exits: [*Mat] / [*Min] / [*Sub]) -10/Subcaves (discovered 2 exits: [*Mat] / Rec) History --------- Turn | Location | Event 1 | -11/Scrapyard | Discovered new exit (range 0) 1 | -11/Scrapyard | Entered Materials 201 | -10/Materials | Discovered new exit (range 12) 311 | -10/Materials | Build established: Mutant 364 | -10/Materials | Discovered new exit (range 16) 474 | -10/Materials | Discovered new exit (range 6) 498 | -10/Materials | Entered Subcaves 499 | -10/Subcaves | Approached by a straggling Scientist 616 | -10/Subcaves | Identified exit to Recycling 708 | -10/Subcaves | A swath of the cavern ceiling suddenly collapsed 928 | -10/Subcaves | A swath of the cavern ceiling suddenly collapsed 1197 | -10/Subcaves | Core integrity fell below 50% 1223 | -10/Subcaves | Lost 4 parts (2n1u1w) 1250 | -10/Subcaves | Learned location of Zion (-6) 1250 | -10/Subcaves | Met a Zionite searching for "candidates" 1311 | -10/Subcaves | Discovered new exit (range 12) 1477 | -10/Subcaves | Core integrity fell below 20% 1578 | -10/Subcaves | Shifting Twisted Machinery released Mak. Spear 1961 | -10/Subcaves | Shifting Twisted Machinery released Battle Rifle 2012 | -10/Subcaves | Shifting Twisted Machinery released Sub. Optics 2215 | -10/Subcaves | A Subdweller sparked back to life 2215 | -10/Subcaves | A Subdweller sparked back to life 2215 | -10/Subcaves | A Subdweller sparked back to life 2231 | -10/Subcaves | Ambushed by Subdweller buried in earth 2250 | -10/Subcaves | Destroyed by 3A-999(R) with Subdweller Machine Gun Last Messages --------------- 02004_ System corrupted: Matter fused (-5). Sub. Optics falls loose from the Twisted Machinery. 02028_ System corrupted: Matter fused (-9). 02051_ WQJKTGJN&I BM:%AU3RGBPW8QG 02108_ System corrupted: Matter fused (-8). 02124_ System corrupted: Component data lost. 02135_ System corrupted: Sub. Beam Cannon failed to cycle. 02138_ UW-6CD(u) tweaks Twisted Machinery. 02138_ Sub. Beam Cannon shoots sparks and powers down. 02145_ System corrupted: Heat flow error (+251). 02171_ UW-6CD(u) builds Twisted Machinery. 02178_ Acquired 5 matter. 02180_ Acquired 7 matter. 02215_ IA-PTD(R) creaks and sparks as it begins to move. 02215_ UJ-ZQV(R) creaks and sparks as it begins to move. 02215_ ML-KRC(R) creaks and sparks as it begins to move. 02217_ Lgt. Treads destroyed. 02232_ 3A-999(R): "FREEEEDUMB!" 02234_ Lgt. Treads destroyed. 02235_ System corrupted: Matter fused (-6). Map ----- +----------------------------------------------------+ | ?????????????????????????????????????????????????? | | ?????????????????????????????????????????????????? | | ?????????????????????????????????????????????????? | | ?????????????????????????????????????????????????? | | ?????????????????????????????????????????????????? | | ?????????????????????????????????????????????????? | | ?????????????????????????????????????????????????? | | ?????????????????????????????????????????????????? | | ?????????????????????????????????????????????????? | | ?????????????????????????????????????????????????? | | ?????????????????????????????????????????????????? | | ?????????????????????????????????????????????????? | | ?????????????????????????????????????????????????? | | ????????????????????####?????????????????????????? | | ???????????????????##& ?????????????????????????? | | ??????????????????## "##??????????????????????? | | ???????????????????" " ###???????????????????? | | ??????????????????? " & % % #??????????????????? | | ???????????????????# " ????###???????????? | | ???????????????????? #?# #####"#???????????? | | ???????????????????? ##?# """""##??????????? | | ????????????????????? % #??# """"""######???### | | ?????????????????????# #????% """""""" "##?## " | | ?????????????????????# ####### "" """"""### " | | ?????????????????????# "## ## "" """"""### " | | ?????????????????????# #@ "" """"" ###" | | ??????????????????????# R# "## " ##" | | ??????????????????????####### "### """""" " | | ???????????????????????????## "#?# "" """ " | | ???????????????????????????# ## "" """ | | ???????????????????????????## "" "" " | | ????????????????????????????# "" ## "#### " | | ????????????????????????????### #######??##" | | ??????????????????????????????# % ###?????????#" | | ??????????????????????????????#######???????????# | | ????????????????????????????????????????????????## | | ?????????????????????????????????????????????????? | | ?????????????????????????????????????????????????? | | ?????????????????????????????????????????????????? | | ?????????????????????????????????????????????????? | | ?????????????????????????????????????????????????? | | ?????????????????????????????????????????????????? | | ?????????????????????????????????????????????????? | | ?????????????????????????????????????????????????? | | ?????????????????????????????????????????????????? | | ?????????????????????????????????????????????????? | | ?????????????????????????????????????????????????? | | ?????????????????????????????????????????????????? | | ?????????????????????????????????????????????????? | | ?????????????????????????????????????????????????? | +----------------------------------------------------+ Best States ------------- Heat Dissipation 25 Energy Generation 10 Energy Capacity 250 Matter Stores 300 Matter Capacity 300 Sight Range 16 Terrain Scan Density 10 Propulsion Shielding 33 Weapon Shielding 33 Evasion (%) 55 Recoil Reduction 2 Item Schematics ----------------- None Robot Schematics ------------------ None Fabricated ------------ Nothing Repaired ---------- Nothing Alien Tech Used ----------------- None Achievements -------------- None Challenges ------------ None Game ------ Seed ScatterBiocellUnit Manual? 0 Play Time 00:13:55 Cumulative 399.9 hours Start 2025.07.24 @ 15:08:36 End 2025.07.24 @ 15:16:36 Sessions 1 Manual Loads 0 Difficulty Rogue Special Mode None Game No. 499 Rogue 499 Adventurer 0 Explorer 0 Win Type - Total 31 Types 15/1/9/1/1/1/0/1/1/1 Lore% 87 Gallery% 80 Achievement% 77 Wizard Run 0 Options --------- Layout 0 ASCII 0 Keyboard 0 Movement Numpad Keybinds 0 Fullscreen 1 Font 18/SmallcapsGlow Map View 76x50 Zoom Use 0% Tactical HUD 1 Map Filters NONE Filters NONE Steam 1 RUN: bc97326b-393c-4453-8893-506bcfd02388